bitfinex-derivatives/quotes_BTCF0:USTF0_20251030
["timestamp","ask_amount","ask_price","bid_price","bid_amount"]
[1761800653829,0.05714,108630.0,108620.0,0.04937]
[1761800654016,0.05714,108620.0,108610.0,0.12523846]
[1761800654215,0.41794,108620.0,108610.0,0.12523846]
[1761800654420,0.41794,108620.0,108610.0,0.3977193]
[1761800655032,0.41794,108620.0,108610.0,0.3679393]
[1761800655230,0.41794,108620.0,108610.0,0.3689393]
[1761800655426,0.41794,108620.0,108610.0,0.0719993]
[1761800655629,0.41794,108620.0,108610.0,0.3987593]
[1761800655831,0.05714,108620.0,108610.0,0.3987593]
[1761800656038,0.05714,108630.0,108620.0,0.07718]
[1761800656529,0.3608,108640.0,108620.0,0.07718]
[1761800656722,0.41794,108640.0,108630.0,0.38649]
[1761800657324,0.05714,108620.0,108610.0,0.0709993]
[1761800657634,0.41794,108620.0,108610.0,0.3981593]
[1761800657820,0.38965,108630.0,108620.0,0.02995]
[1761800658025,0.38965,108630.0,108620.0,0.07718]
[1761800658329,0.5100025,108630.0,108620.0,0.07718]
[1761800659835,0.05714,108600.0,108590.0,0.05979951]
[1761800660223,0.05714,108600.0,108590.0,0.38715951]
[1761800661138,0.05714,108600.0,108590.0,0.38819951]
[1761800661340,0.05714,108600.0,108590.0,0.06079951]
[1761800661638,0.05714,108600.0,108590.0,0.38811951]
[1761800661934,0.25713606,108600.0,108590.0,0.39876269]
[1761800662341,0.25713606,108600.0,108590.0,0.07148269]
[1761800662534,0.02885,108600.0,108590.0,0.39876269]
[1761800662736,0.02885,108610.0,108600.0,0.07718]
[1761800662936,0.41794,108620.0,108610.0,0.05973]
[1761800663139,0.41794,108620.0,108610.0,0.38701]
[1761800663732,0.41794,108620.0,108610.0,0.05973]
[1761800663932,0.41794,108620.0,108610.0,0.38701]
[1761800665331,0.41894,108620.0,108610.0,0.38701]
[1761800665733,0.3618,108620.0,108610.0,0.38701]
[1761800665944,0.001,108620.0,108610.0,0.38701]
[1761800666837,0.001,108620.0,108610.0,0.74781]
[1761800667040,0.3608,108630.0,108620.0,0.07718]
[1761800667641,0.41794,108630.0,108620.0,0.07718]
[1761800668247,0.5100016,108630.0,108620.0,0.40414]
[1761800668741,0.5100016,108630.0,108620.0,0.4041]
[1761800669438,0.05714,108600.0,108590.0,0.04053269]
[1761800669644,0.05714,108600.0,108590.0,0.07048269]
[1761800669842,0.05714,108580.0,108570.0,0.05973]
[1761800670043,0.41794,108580.0,108570.0,0.38693]
[1761800670735,0.41800951,108580.0,108570.0,0.38693]
[1761800671552,0.41800951,108580.0,108570.0,0.39779469]
[1761800672353,0.41700951,108580.0,108570.0,0.39779469]
[1761800672538,6.951e-05,108580.0,108570.0,0.39779469]
[1761800673046,0.00106951,108580.0,108570.0,0.39779469]
[1761800673748,6.951e-05,108580.0,108570.0,0.75859469]
[1761800675034,6.951e-05,108580.0,108570.0,0.43139469]
[1761800675238,6.951e-05,108580.0,108570.0,0.75903469]
[1761800676152,6.951e-05,108580.0,108570.0,0.76003469]
[1761800676350,0.00206951,108580.0,108570.0,0.76003469]
[1761800676549,0.00206951,108580.0,108570.0,0.43239469]
[1761800676746,0.00206951,108580.0,108570.0,0.75891469]
[1761800678248,0.00206951,108580.0,108570.0,1.20234034]
[1761800678642,0.00106951,108580.0,108570.0,0.85102349]
[1761800679442,6.951e-05,108580.0,108570.0,0.85378349]
[1761800679749,6.951e-05,108580.0,108570.0,0.93478349]
[1761800679949,6.951e-05,108580.0,108570.0,1.28610034]
[1761800680149,6.951e-05,108580.0,108570.0,1.20510034]
[1761800680346,0.02891951,108580.0,108570.0,0.40261469]
[1761800680550,0.76837636,108580.0,108570.0,0.01186469]
[1761800680749,0.76837636,108580.0,108570.0,0.001]
[1761800680947,0.77615636,108580.0,108570.0,0.001]
[1761800681149,0.77615636,108580.0,108570.0,0.32848]
[1761800681654,0.77339636,108580.0,108570.0,0.32848]
[1761800682248,0.76837636,108580.0,108570.0,0.32848]
[1761800682452,6.951e-05,108580.0,108570.0,0.4741198]
[1761800682649,0.00406951,108580.0,108570.0,0.4741198]
[1761800682846,0.00406951,108580.0,108570.0,0.4731198]
[1761800683040,0.02891,108570.0,108560.0,0.38898833]
[1761800683242,0.76836685,108570.0,108560.0,0.40911833]
[1761800683446,0.41705,108570.0,108560.0,0.40911833]
[1761800684449,0.05625,108570.0,108560.0,0.40911833]
[1761800684650,0.02891,108570.0,108560.0,0.40911833]
[1761800684846,0.02891,108570.0,108560.0,0.35558833]
[1761800685045,0.41705,108570.0,108560.0,0.40911833]
[1761800685259,0.41705,108570.0,108560.0,0.40899833]
[1761800686161,0.76836685,108570.0,108560.0,0.08171833]
[1761800686459,0.76836685,108570.0,108560.0,0.40891833]
[1761800687356,0.76836685,108570.0,108560.0,0.08171833]
[1761800687557,0.05625,108550.0,108540.0,1.87825]
[1761800687757,0.40756685,108550.0,108540.0,1.84461]
[1761800687957,0.05631951,108550.0,108540.0,1.85528173]
[1761800688159,0.05631951,108550.0,108540.0,1.52812173]
[1761800688661,0.05731951,108550.0,108540.0,1.85524173]
[1761800688861,0.14944601,108550.0,108540.0,1.85524173]
[1761800689664,0.51024601,108550.0,108540.0,1.85520173]
[1761800690560,0.86156286,108550.0,108540.0,1.85520173]
[1761800690762,0.86156286,108550.0,108540.0,1.52812173]
[1761800691162,0.86156286,108550.0,108540.0,1.85520173]
[1761800692368,0.86156286,108550.0,108540.0,1.51745]
[1761800692664,0.86156286,108550.0,108540.0,1.84453]
[1761800692863,0.86156286,108550.0,108540.0,1.8550753]
[1761800693463,0.51024601,108550.0,108540.0,1.8551153]
[1761800693662,0.51024601,108550.0,108540.0,1.5279953]
[1761800693862,0.51024601,108550.0,108540.0,1.8551153]
[1761800693863,0.48290601,108550.0,108540.0,1.8551153]
[1761800694062,0.48290601,108550.0,108540.0,1.5279953]
[1761800694264,0.48290601,108550.0,108540.0,1.8551153]
[1761800694265,0.45399601,108550.0,108540.0,1.8551153]
[1761800694454,0.09319601,108550.0,108540.0,1.8551153]
[1761800694655,0.00106951,108550.0,108540.0,2.2159153]
[1761800694853,0.00106951,108550.0,108540.0,1.8915553]
[1761800695055,0.05731951,108550.0,108540.0,1.8551153]
[1761800695273,0.00106951,108550.0,108540.0,1.8551153]
[1761800695474,0.09319601,108550.0,108540.0,1.8551153]
[1761800696357,0.00106951,108550.0,108540.0,2.20643215]
[1761800696563,0.09319601,108550.0,108540.0,2.20643215]
[1761800696866,0.00106951,108550.0,108540.0,2.20643215]
[1761800697572,0.09319601,108550.0,108540.0,2.20643215]
[1761800697764,0.00106951,108550.0,108540.0,2.56723215]
[1761800698268,0.4529128,108570.0,108560.0,0.07001]
[1761800698573,0.4529128,108570.0,108560.0,0.39713]
[1761800699959,0.5091628,108570.0,108560.0,0.39713]
[1761800700159,0.5091628,108570.0,108560.0,0.07001]
[1761800700361,0.86047965,108570.0,108560.0,0.07001]
[1761800700567,0.0921267,108550.0,108540.0,1.5279953]
[1761800700771,0.0921267,108550.0,108540.0,1.8551153]
[1761800700970,0.4559161,108570.0,108560.0,0.07001]
[1761800701169,0.4529049,108580.0,108570.0,0.05353]
[1761800701372,0.46074069,108580.0,108570.0,0.05353]
[1761800701574,0.46074069,108580.0,108570.0,0.40760685]
[1761800701889,0.6965963,108590.0,108580.0,0.02825]
[1761800701890,0.7528463,108590.0,108580.0,0.02825]
[1761800702071,0.0921097,108570.0,108560.0,0.07001]
[1761800702258,0.4529097,108570.0,108560.0,0.07001]
[1761800702660,0.4529097,108570.0,108560.0,0.39713]
[1761800704374,0.4549097,108570.0,108560.0,0.39713]
[1761800705066,0.0941097,108570.0,108560.0,0.39713]
[1761800705880,0.002,108570.0,108560.0,0.39713]
[1761800706379,0.0941088,108570.0,108560.0,0.39713]
[1761800707278,0.4549088,108570.0,108560.0,0.39709]
[1761800708075,0.5026688,108570.0,108560.0,0.39709]
[1761800708581,1.69768565,108570.0,108540.0,0.0279953]
[1761800708773,0.40856,108550.0,108540.0,0.0801753]
[1761800709079,0.75987685,108550.0,108540.0,0.0801753]
[1761800709282,0.97956407,108550.0,108540.0,0.4072553]
[1761800709873,0.04776,108540.0,108530.0,0.05228253]
[1761800710070,0.61876407,108540.0,108530.0,0.37936253]
[1761800710378,0.40856,108540.0,108530.0,1.82718253]
[1761800710582,0.4164,108540.0,108520.0,0.06550846]
[1761800710876,0.04776,108520.0,108510.0,0.12008846]
[1761800711071,0.76936,108520.0,108510.0,1.88166]
[1761800711269,0.97956407,108520.0,108510.0,1.88166]
[1761800711576,0.04785762,108520.0,108510.0,1.88166]
[1761800711780,0.04685762,108520.0,108510.0,1.88166]
[1761800712073,0.40765762,108520.0,108510.0,1.892354]
[1761800712275,9.762e-05,108520.0,108510.0,1.892354]
[1761800712477,9.762e-05,108520.0,108510.0,3.06611807]
[1761800712667,0.40656,108550.0,108540.0,0.06702]
[1761800712868,0.61676407,108550.0,108540.0,0.39414]
[1761800713374,0.4289216,108550.0,108540.0,0.39414]
[1761800713573,0.639124,108550.0,108520.0,0.01484]
[1761800713878,0.04132,108530.0,108520.0,0.0613]
[1761800714179,0.38146,108540.0,108530.0,0.04646]
[1761800714480,0.59166407,108540.0,108530.0,0.04646]
[1761800714686,0.61232407,108540.0,108530.0,0.04646]
[1761800715379,0.61232407,108540.0,108530.0,0.34958]
[1761800715777,0.40212,108540.0,108530.0,0.37358]
[1761800715973,0.5010943,108540.0,108530.0,0.32712]
[1761800716166,0.1334705,108520.0,108510.0,1.84009048]
[1761800716368,0.70447457,108520.0,108510.0,1.84009048]
[1761800717365,0.4992905,108520.0,108510.0,1.84009048]
[1761800717569,0.70949457,108520.0,108510.0,1.84109048]
[1761800717770,0.4970305,108520.0,108510.0,1.5034]
[1761800718081,0.71225457,108520.0,108510.0,1.83152]
[1761800718278,0.3608,108530.0,108520.0,0.01413]
[1761800718576,0.38146,108530.0,108520.0,0.06059]
[1761800718876,0.02066,108530.0,108520.0,0.06059]
[1761800719081,0.38146,108530.0,108520.0,0.06059]
[1761800719284,0.04816,108520.0,108510.0,1.84136669]
[1761800719475,0.61232407,108520.0,108510.0,1.84168669]
[1761800719674,0.61132407,108520.0,108510.0,1.84064669]
[1761800720373,0.40112,108520.0,108510.0,1.84164669]
[1761800720567,0.40112,108520.0,108510.0,1.51424669]
[1761800721072,0.03932,108510.0,108460.0,0.72380296]
[1761800721273,0.40012,108490.0,108480.0,0.06059]
[1761800721476,0.64382,108490.0,108480.0,1.88923]
[1761800721771,0.6045,108490.0,108480.0,1.88923]
[1761800722079,0.6045,108490.0,108480.0,1.57085392]
[1761800722382,0.64382,108490.0,108480.0,1.83890392]
[1761800722578,0.85402407,108490.0,108480.0,1.51026392]
[1761800722779,0.40012,108490.0,108480.0,1.82888]
[1761800723078,0.40012,108490.0,108480.0,1.51269639]
[1761800723276,1.21032407,108490.0,108480.0,1.51269639]
[1761800723473,0.61032407,108490.0,108480.0,1.502]
[1761800723675,0.61308407,108490.0,108480.0,1.503]
[1761800723977,0.61032407,108490.0,108480.0,1.503]
[1761800724184,0.61032407,108490.0,108480.0,0.003]
[1761800724371,0.03932,108480.0,108470.0,0.33964822]
[1761800724567,0.40012,108480.0,108470.0,0.36210822]
[1761800724770,0.40012,108480.0,108470.0,1.51064822]
[1761800724967,0.40012,108480.0,108460.0,0.02387296]
[1761800724968,0.03932,108470.0,108460.0,0.02387296]
[1761800725273,0.4923131,108470.0,108460.0,0.41338296]
[1761800725678,0.3608,108470.0,108460.0,0.62358703]
[1761800725987,0.39812,108470.0,108460.0,0.37722274]
[1761800726175,0.39712,108470.0,108460.0,0.42368274]
[1761800726481,0.4863046,108480.0,108470.0,0.04646]
[1761800726986,0.4863046,108480.0,108470.0,0.37534]
[1761800727170,0.3608,108480.0,108470.0,0.58554407]
[1761800727487,0.3608,108480.0,108470.0,0.37534]
[1761800727874,0.4863046,108480.0,108470.0,0.37526]
[1761800728180,0.4863046,108480.0,108470.0,0.32888]
[1761800728683,0.4863046,108480.0,108470.0,0.3513]
[1761800728885,0.39412,108480.0,108470.0,0.3753]
[1761800729081,0.3608,108480.0,108470.0,0.58550407]
[1761800729285,0.3608,108480.0,108470.0,0.3753]
[1761800729682,0.3608,108480.0,108470.0,0.32884]
[1761800729982,0.39412,108490.0,108480.0,0.06059]
[1761800731180,0.4862974,108490.0,108480.0,0.06059]
[1761800732174,0.001,108490.0,108480.0,0.63159407]
[1761800732873,0.4529694,108500.0,108490.0,0.04646]
[1761800733072,0.4529694,108500.0,108490.0,0.37518]
[1761800733275,0.4529649,108510.0,108500.0,0.06059]
[1761800733486,0.4862765,108520.0,108510.0,0.04646]
[1761800733676,0.452952,108520.0,108510.0,0.58542407]
[1761800733986,0.1254805,108510.0,108500.0,0.38931]
[1761800734172,0.4862805,108510.0,108500.0,0.39962556]
[1761800734368,0.01225,108480.0,108470.0,0.02443]
[1761800734571,0.37305,108480.0,108470.0,0.37485]
[1761800734775,0.37305,108490.0,108480.0,0.05915]
[1761800734982,0.3853,108490.0,108480.0,0.05915]
[1761800735171,0.01225,108490.0,108480.0,0.06015]
[1761800735375,0.37305,108490.0,108480.0,0.27035407]
[1761800735588,0.3608,108500.0,108480.0,0.27035407]
[1761800735589,0.3853,108500.0,108490.0,0.04601]
[1761800735780,0.3853,108500.0,108490.0,0.37533]
[1761800736784,0.3608,108500.0,108490.0,0.58553407]
[1761800736984,0.3853,108510.0,108500.0,0.05915]
[1761800737989,0.3608,108510.0,108500.0,0.05915]
[1761800738683,0.3608,108520.0,108510.0,0.04601]
[1761800738875,0.3608,108520.0,108510.0,0.58537407]
[1761800739072,0.3608,108520.0,108510.0,0.37517]
[1761800739471,0.3608,108530.0,108520.0,0.05915]
[1761800739676,0.3853,108530.0,108520.0,0.05915]
[1761800740483,0.3853,108530.0,108520.0,0.38823]
[1761800740684,0.3853,108530.0,108520.0,0.38815]
[1761800740891,0.3608,108530.0,108520.0,0.59835407]
[1761800741280,0.3618,108530.0,108520.0,0.59835407]
[1761800741978,0.3608,108530.0,108520.0,0.59835407]
[1761800742179,0.4539435,108530.0,108520.0,0.59835407]
[1761800742493,0.0931435,108530.0,108520.0,0.59835407]
[1761800742791,0.4529435,108530.0,108520.0,0.59819407]
[1761800742994,0.0931435,108530.0,108520.0,0.38799]
[1761800743182,0.0931435,108530.0,108520.0,0.59819407]
[1761800743383,0.0931435,108530.0,108520.0,0.38799]
[1761800744780,0.001,108530.0,108520.0,0.38799]
[1761800744981,0.001,108530.0,108520.0,0.480142]
[1761800745288,0.001,108530.0,108520.0,0.59819407]
[1761800745690,0.0931435,108530.0,108520.0,0.59819407]
[1761800745897,0.4539435,108530.0,108520.0,0.59819407]
[1761800746091,0.0931435,108530.0,108520.0,0.59819407]
[1761800746589,0.001,108530.0,108520.0,0.38759]
[1761800746994,0.001,108530.0,108520.0,1.05074627]
[1761800747190,0.67742475,108550.0,108540.0,0.05915]
[1761800747396,0.70026565,108550.0,108540.0,0.38747]
[1761800747990,0.4529287,108550.0,108540.0,0.38747]
[1761800748496,0.4539287,108550.0,108540.0,0.38747]
[1761800749097,0.4661787,108550.0,108540.0,0.38747]
[1761800750304,0.4784287,108550.0,108540.0,0.39818225]
[1761800751400,0.3618,108550.0,108540.0,0.39818225]
[1761800751597,0.3618,108550.0,108540.0,0.70052132]
[1761800751598,0.001,108550.0,108540.0,0.70052132]
[1761800753003,0.1497,108550.0,108540.0,1.06132132]
[1761800753401,0.1497,108550.0,108540.0,1.06408132]
[1761800753705,0.14859999,108550.0,108540.0,1.90408132]
[1761800753896,0.14859999,108550.0,108540.0,1.66408132]
[1761800754096,0.3608,108570.0,108560.0,0.05915]
[1761800754292,0.3608,108570.0,108560.0,0.59743407]
[1761800754489,0.4774043,108580.0,108570.0,0.04601]
[1761800754799,0.5001964,108580.0,108570.0,0.04601]
[1761800755797,0.1166095,108570.0,108560.0,0.05915]
[1761800756106,0.4774095,108570.0,108560.0,0.38703]
[1761800756494,0.01225,108570.0,108560.0,0.38703]
[1761800756694,0.4774014,108580.0,108570.0,0.04601]
[1761800756895,0.50018541,108580.0,108570.0,0.04601]
[1761800757307,0.50118541,108580.0,108570.0,0.04601]
[1761800757807,0.70118146,108580.0,108570.0,0.04601]
[1761800758302,0.50118541,108580.0,108570.0,0.04601]
[1761800758503,0.40908401,108580.0,108570.0,0.04601]
[1761800758710,0.04828401,108580.0,108570.0,0.04601]
[1761800759096,0.03603401,108580.0,108570.0,0.25621407]
[1761800759291,0.12813511,108580.0,108570.0,0.04601]
[1761800759492,0.50118511,108580.0,108570.0,0.04601]
[1761800759897,0.50018511,108580.0,108570.0,0.37385]
[1761800760093,0.50118511,108580.0,108570.0,0.37385]
[1761800760607,0.4784011,108580.0,108570.0,0.37385]
[1761800760810,0.50119099,108580.0,108570.0,0.37385]
[1761800761315,0.74489099,108580.0,108570.0,0.37385]
[1761800761809,0.29198989,108580.0,108570.0,0.37385]
[1761800762005,0.25695,108580.0,108570.0,0.37385]
[1761800762204,0.7449038,108580.0,108570.0,0.37385]
[1761800763211,0.3613011,108580.0,108570.0,0.37385]
[1761800763511,0.1176011,108580.0,108570.0,0.37385]
[1761800763708,0.4784011,108580.0,108570.0,0.37385]
[1761800764206,0.2653095,108570.0,108560.0,0.05915]
[1761800764411,0.4774095,108570.0,108560.0,0.38655]
[1761800764621,0.0245,108570.0,108560.0,0.38655]
[1761800764909,0.1166095,108570.0,108560.0,0.38655]
[1761800765509,0.0245,108560.0,108540.0,0.38465225]
[1761800765703,0.95630407,108550.0,108540.0,0.39616225]
[1761800766099,0.7461,108550.0,108540.0,0.39616225]
[1761800767007,0.95630407,108550.0,108540.0,0.39816225]
[1761800767218,0.7461,108550.0,108540.0,0.39816225]
[1761800767600,0.7461,108550.0,108540.0,0.40016225]
[1761800768209,0.7461,108550.0,108540.0,0.39816225]
[1761800768411,0.7471,108550.0,108540.0,0.39816225]
[1761800768602,0.7471,108550.0,108540.0,0.39824225]
[1761800768914,0.7461,108550.0,108540.0,0.39624225]
[1761800769114,0.7501,108550.0,108540.0,0.39624225]
[1761800769810,0.7491,108550.0,108540.0,0.39624225]
[1761800770398,0.7471,108550.0,108540.0,0.39624225]
[1761800770614,0.7491,108550.0,108540.0,0.39624225]
[1761800770813,0.7491,108550.0,108520.0,0.37634]
[1761800771010,0.0245,108530.0,108520.0,0.1527222]
[1761800771316,0.3853,108540.0,108530.0,0.04503]
[1761800771504,0.3853,108540.0,108530.0,0.0553533]
[1761800772106,0.4774389,108540.0,108530.0,0.0553533]
[1761800772704,0.4784389,108540.0,108530.0,0.0553533]
[1761800773619,0.4804389,108540.0,108530.0,0.0553533]
[1761800775713,0.0275,108540.0,108530.0,0.76846467]
[1761800775902,0.15028736,108540.0,108530.0,0.86060837]
[1761800776601,0.15028736,108540.0,108530.0,1.18792837]
[1761800777012,0.15028736,108540.0,108530.0,0.86060837]
[1761800777218,0.1487,108540.0,108530.0,1.18792837]
[1761800777421,0.1487,108540.0,108530.0,1.18788837]
[1761800777811,0.116635,108540.0,108530.0,0.0563533]
[1761800778121,0.6261317,108550.0,108540.0,0.05758]
[1761800778322,0.2653267,108550.0,108540.0,0.05758]
[1761800779001,0.1732,108550.0,108540.0,0.1497152]
[1761800779206,0.1487,108550.0,108540.0,0.5105152]
[1761800779922,0.1497,108550.0,108540.0,0.5105152]
[1761800780221,0.001,108550.0,108540.0,0.86282657]
[1761800780425,0.1166101,108570.0,108560.0,0.05758]
[1761800780626,0.13943698,108570.0,108560.0,0.38486]
[1761800780807,0.4774062,108580.0,108570.0,0.04395]
[1761800781010,0.50023533,108580.0,108570.0,0.04395]
[1761800782414,0.40812913,108580.0,108570.0,0.04395]
[1761800782614,0.50123023,108580.0,108570.0,0.04395]
[1761800782815,0.4784011,108580.0,108570.0,0.04395]
[1761800783019,0.4794011,108580.0,108570.0,0.04395]
[1761800785027,0.1166096,108570.0,108560.0,0.38486]
[1761800785327,0.1166096,108570.0,108560.0,0.38482]
[1761800785622,0.1043596,108570.0,108560.0,0.38482]
[1761800785809,0.0921096,108570.0,108560.0,0.73713137]
[1761800786113,0.4784062,108580.0,108570.0,0.04395]
[1761800786314,0.1176062,108580.0,108570.0,0.04395]
[1761800786510,0.0255,108580.0,108570.0,0.04395]
[1761800786837,0.001,108580.0,108570.0,0.84917097]
[1761800787125,0.1165958,108590.0,108580.0,0.05758]
[1761800787317,0.1165958,108590.0,108580.0,0.38482]
[1761800788428,0.6260875,108600.0,108590.0,0.04395]
[1761800788617,0.64889091,108600.0,108590.0,0.04395]
[1761800788816,0.2652875,108600.0,108590.0,0.04395]
[1761800789222,0.2652875,108600.0,108590.0,0.05431468]
[1761800789423,0.6260875,108600.0,108590.0,0.38151468]
[1761800789728,0.82708356,108600.0,108590.0,0.38151468]
[1761800790321,0.83008356,108600.0,108590.0,0.38151468]
[1761800790529,0.2692842,108600.0,108590.0,0.38151468]
[1761800791025,0.1527,108600.0,108590.0,0.38151468]
[1761800791227,0.1527,108600.0,108590.0,0.82591865]
[1761800791525,0.1527,108600.0,108590.0,1.18947865]
[1761800791830,0.1527,108600.0,108590.0,1.18671865]
[1761800792124,0.1527,108600.0,108590.0,1.46671865]
[1761800792125,0.004,108600.0,108590.0,1.46671865]
[1761800792324,0.004,108600.0,108590.0,1.46947865]
[1761800792531,0.004,108600.0,108590.0,2.06947865]
[1761800792727,0.004,108600.0,108590.0,2.14549132]
[1761800792913,0.004,108600.0,108590.0,1.54549132]
[1761800793117,0.004,108600.0,108590.0,0.93829132]
[1761800793317,0.004,108600.0,108590.0,1.37545132]
[1761800794124,0.004,108600.0,108590.0,1.53545132]
[1761800795721,0.00277311,108600.0,108590.0,1.53545132]
[1761800796036,0.00277311,108600.0,108590.0,1.62753659]
[1761800797930,0.39084,108640.0,108630.0,0.04392]
[1761800798117,0.39084,108640.0,108630.0,0.371]
[1761800798118,0.50563856,108640.0,108630.0,0.371]
[1761800798324,0.1220988,108630.0,108620.0,0.05693]
[1761800798522,0.1220988,108630.0,108620.0,0.38401]
[1761800798523,0.50564706,108630.0,108620.0,0.38401]
[1761800799133,0.14484706,108630.0,108620.0,0.38401]
[1761800799443,0.05278826,108630.0,108620.0,0.38401]
[1761800799631,0.4858951,108640.0,108630.0,0.04392]
[1761800799822,0.50862759,108640.0,108630.0,0.04392]
[1761800800134,0.50562759,108640.0,108630.0,0.04392]
[1761800800330,0.0920797,108610.0,108600.0,0.05693]
[1761800800534,0.4829197,108610.0,108600.0,0.38397]
[1761800801642,0.03004,108610.0,108600.0,0.38397]
[1761800802527,0.03304,108610.0,108600.0,0.38397]
[1761800804832,0.03304,108610.0,108600.0,0.73628137]
[1761800805040,0.03304,108610.0,108600.0,1.09708137]
[1761800805335,0.003,108610.0,108600.0,1.18916477]
[1761800806138,0.87273128,108640.0,108630.0,0.04392]
[1761800806139,0.38487618,108640.0,108630.0,0.04392]
[1761800806345,0.02277016,108640.0,108630.0,0.81528937]
[1761800806729,0.02277016,108640.0,108630.0,2.67608937]
[1761800807035,0.02277016,108640.0,108630.0,1.996778]
[1761800807240,0.02277016,108640.0,108630.0,2.67608977]
[1761800808238,0.02277016,108640.0,108630.0,2.34908977]
[1761800808435,0.02277016,108640.0,108630.0,2.67608977]
[1761800809229,0.02277016,108640.0,108630.0,2.58403137]
[1761800809427,0.02277016,108640.0,108630.0,2.23412]
[1761800809642,0.02277016,108640.0,108630.0,2.58643137]
[1761800810134,0.02277016,108640.0,108630.0,2.67848937]
[1761800811550,0.02277016,108640.0,108630.0,2.58643137]
[1761800812655,0.51165926,108640.0,108630.0,1.87324]
[1761800813552,0.15085926,108640.0,108630.0,1.54632]
[1761800813740,0.15085926,108640.0,108630.0,1.87324]
[1761800813940,0.51165926,108640.0,108630.0,1.87324]
[1761800814141,0.51165926,108640.0,108630.0,1.54632]
[1761800814345,0.55031108,108640.0,108630.0,1.5024]
[1761800815444,0.54368108,108640.0,108630.0,1.5024]
[1761800815634,0.41961016,108640.0,108630.0,1.5024]
[1761800816035,0.38357016,108640.0,108630.0,1.5024]
[1761800816240,0.02277016,108640.0,108630.0,2.30757037]
[1761800817653,0.02277016,108640.0,108630.0,2.18159137]
[1761800817848,0.02277016,108640.0,108630.0,1.82928]
[1761800818152,0.02277016,108640.0,108630.0,1.921339]
[1761800818352,0.02277016,108640.0,108630.0,2.282139]
[1761800819761,0.02277016,108640.0,108630.0,2.63445037]
[1761800820255,0.02277016,108640.0,108630.0,2.63721037]
[1761800820440,0.02277016,108640.0,108630.0,2.63445037]
[1761800820635,0.02277016,108640.0,108630.0,2.54239137]
[1761800820847,0.02277016,108640.0,108630.0,2.63445037]
[1761800821646,0.02277016,108640.0,108630.0,2.90721037]
[1761800822048,0.02277016,108640.0,108630.0,2.90445037]
[1761800822240,0.02277016,108640.0,108630.0,2.97867652]
[1761800822557,0.02277016,108640.0,108630.0,2.98143652]
[1761800822747,0.02277016,108640.0,108630.0,3.58143652]
[1761800823061,0.00925166,108660.0,108650.0,0.135962]
[1761800823246,0.00925166,108660.0,108650.0,0.826002]
[1761800823450,0.6015229,108680.0,108670.0,0.04392]
[1761800823650,0.5095,108680.0,108670.0,0.37312]
[1761800823857,0.5095,108680.0,108670.0,0.4651451]
[1761800823858,0.1969816,108680.0,108670.0,0.4651451]
[1761800824454,0.0482816,108680.0,108670.0,1.17825647]
[1761800824658,0.0482816,108680.0,108670.0,1.18857939]
[1761800824844,0.4527916,108690.0,108680.0,0.05706]
[1761800825160,0.1839998,108690.0,108680.0,0.05706]
[1761800825956,0.1357266,108680.0,108670.0,0.05615292]
[1761800826255,0.54480486,108680.0,108670.0,0.38295292]
[1761800826759,0.1357266,108680.0,108670.0,0.38295292]
[1761800827052,0.16237613,108690.0,108680.0,0.05706]
[1761800827245,0.54478613,108690.0,108680.0,0.05706]
[1761800827653,0.04826273,108690.0,108680.0,0.05706]
[1761800827842,0.04826273,108690.0,108680.0,0.77257137]
[1761800828046,0.04826273,108690.0,108680.0,0.1514766]
[1761800828246,0.04826273,108690.0,108680.0,0.50378797]
[1761800828755,0.04826273,108700.0,108690.0,0.135438]
[1761800828955,0.46846665,108710.0,108700.0,0.05706]
[1761800829258,0.40451,108710.0,108700.0,0.05946]
[1761800830254,0.3608,108720.0,108700.0,0.1514595]
[1761800830445,0.60450606,108720.0,108710.0,0.37015]
[1761800830646,0.40451,108720.0,108710.0,0.5796908]
[1761800831149,0.40451,108720.0,108710.0,0.6740819]
[1761800831150,0.04371,108720.0,108710.0,0.6740819]
[1761800831458,0.40451,108730.0,108720.0,0.05706]
[1761800831665,0.4964841,108730.0,108720.0,0.05706]
[1761800831950,0.4964841,108730.0,108710.0,0.37251]
[1761800831951,0.1356927,108720.0,108710.0,0.37251]
[1761800832155,0.4964927,108720.0,108710.0,0.37251]
[1761800832550,0.40451,108720.0,108710.0,0.37251]
[1761800832953,0.40451,108720.0,108710.0,0.6740419]
[1761800833147,0.4986754,108730.0,108720.0,0.05832]
[1761800833961,0.4986754,108730.0,108710.0,0.6306119]
[1761800833962,0.0459,108720.0,108710.0,0.02521]
[1761800834261,0.4067,108720.0,108710.0,0.5830508]
[1761800834453,0.0459,108720.0,108710.0,1.0358419]
[1761800834662,0.4067,108730.0,108720.0,0.05832]
[1761800834958,0.4067,108730.0,108720.0,0.2678608]
[1761800835257,0.4067,108730.0,108720.0,0.05832]
[1761800835451,0.0459,108730.0,108720.0,0.05832]
[1761800835862,0.0459,108730.0,108720.0,0.2678608]
[1761800836063,0.0459,108730.0,108720.0,0.37004807]
[1761800836453,0.02272,108730.0,108720.0,0.37004807]
[1761800837178,0.3608,108750.0,108730.0,0.1364442]
[1761800837461,0.4067,108760.0,108750.0,0.04447]
[1761800837666,0.1378573,108750.0,108740.0,0.38492]
[1761800837860,0.4986573,108750.0,108740.0,0.38492]
[1761800838165,0.4986573,108750.0,108740.0,0.38488]
[1761800839758,0.4986573,108750.0,108740.0,0.5944208]
[1761800840063,0.4986573,108750.0,108740.0,0.37103]
[1761800840252,0.4986573,108750.0,108740.0,0.04447]
[1761800840448,0.4986573,108750.0,108740.0,0.35058]
[1761800840653,0.7109581,108750.0,108740.0,0.0024]
[1761800840855,0.5014173,108750.0,108740.0,0.0024]
[1761800841050,0.7109581,108750.0,108740.0,0.0024]
[1761800841245,0.0459,108730.0,108720.0,0.06852467]
[1761800841446,0.4067,108730.0,108720.0,0.06852467]
[1761800842663,0.0459,108730.0,108720.0,0.06852467]
[1761800842852,0.0459,108730.0,108720.0,0.16050717]
[1761800843051,0.0459,108730.0,108720.0,0.27806547]
[1761800843256,0.0459,108730.0,108720.0,0.06852467]
[1761800844962,0.0459,108730.0,108720.0,0.27806547]
[1761800846259,0.0459,108730.0,108720.0,0.63886547]
[1761800846463,0.0459,108730.0,108720.0,0.27806547]
[1761800846968,0.0459,108730.0,108720.0,0.63886547]
[1761800847266,0.4067,108740.0,108730.0,0.04447]